[Event "Late-Titled-Tuesday-Blitz-February-13-2024"]
[Site "Chess.com"]
[Date "2024.02.13"]
[Round "3"]
[White "Nouali_Mohamed"]
[Black "hristos03"]
[Result "1-0"]
[WhiteElo "2574"]
[BlackElo "2381"]
[TimeControl "180+1"]
[EndTime "14:26:02 PST"]
[Termination "Nouali_Mohamed won by resignation"]

1. e4 {[%clk 0:03:00]} 1... c5 {[%clk 0:02:56.2]} 2. Nf3 {[%clk 0:02:59.6]} 2...
d6 {[%clk 0:02:56.1]} 3. d4 {[%clk 0:03:00.1]} 3... cxd4 {[%clk 0:02:56.3]} 4.
Nxd4 {[%clk 0:03:00.5]} 4... Nf6 {[%clk 0:02:56.1]} 5. Nc3 {[%clk 0:03:00.9]}
5... a6 {[%clk 0:02:56.4]} 6. Bc4 {[%clk 0:03:01.4]} 6... e6 {[%clk 0:02:53]} 7.
Bb3 {[%clk 0:03:01.4]} 7... Be7 {[%clk 0:02:47.9]} 8. g4 {[%clk 0:03:01.3]} 8...
h6 {[%clk 0:02:38.3]} 9. Rg1 {[%clk 0:03:01.2]} 9... Nc6 {[%clk 0:02:36.3]} 10.
Be3 {[%clk 0:03:00.9]} 10... Na5 {[%clk 0:02:21.7]} 11. h4 {[%clk 0:02:56.6]}
11... Nxb3 {[%clk 0:02:21.4]} 12. axb3 {[%clk 0:02:57.5]} 12... Nd7 {[%clk
0:02:12.6]} 13. g5 {[%clk 0:02:56]} 13... hxg5 {[%clk 0:02:11.3]} 14. hxg5
{[%clk 0:02:56.9]} 14... g6 {[%clk 0:01:55.8]} 15. Qe2 {[%clk 0:02:55.9]} 15...
Qc7 {[%clk 0:01:25.7]} 16. f4 {[%clk 0:02:52.8]} 16... b6 {[%clk 0:01:18.1]} 17.
f5 {[%clk 0:02:45.2]} 17... Ne5 {[%clk 0:01:05.6]} 18. O-O-O {[%clk 0:02:35.2]}
18... Bd7 {[%clk 0:01:00.7]} 19. f6 {[%clk 0:02:22.8]} 19... Bf8 {[%clk
0:00:56.1]} 20. Rh1 {[%clk 0:02:23.1]} 20... Rxh1 {[%clk 0:00:56.1]} 21. Rxh1
{[%clk 0:02:24]} 21... O-O-O {[%clk 0:00:56.4]} 22. Qxa6+ {[%clk 0:02:22.7]}
22... Kb8 {[%clk 0:00:55.9]} 23. Ndb5 {[%clk 0:02:20.8]} 23... Qb7 {[%clk
0:00:47.7]} 24. Qxb6 {[%clk 0:02:12.4]} 24... Qxb6 {[%clk 0:00:43.9]} 25. Bxb6
{[%clk 0:02:13.3]} 25... Rc8 {[%clk 0:00:43.5]} 26. Rh8 {[%clk 0:02:09.1]} 26...
Bc6 {[%clk 0:00:19.9]} 27. Bc7+ {[%clk 0:01:58.2]} 27... Kb7 {[%clk 0:00:15.4]}
28. Bxd6 {[%clk 0:01:52.7]} 1-0

[Event "Late-Titled-Tuesday-Blitz-February-13-2024"]
[Site "Chess.com"]
[Date "2024.02.13"]
[Round "3"]
[White "norwaytoadog"]
[Black "Abduzhaparov"]
[Result "0-1"]
[WhiteElo "2200"]
[BlackElo "2400"]
[TimeControl "180+1"]
[EndTime "14:26:08 PST"]
[Termination "Abduzhaparov won on time"]

1. e4 {[%clk 0:03:00.1]} 1... d6 {[%clk 0:03:00.9]} 2. d4 {[%clk 0:02:59.5]}
2... Nf6 {[%clk 0:03:01.8]} 3. Nc3 {[%clk 0:02:59.7]} 3... e5 {[%clk 0:03:02.7]}
4. Nf3 {[%clk 0:02:59.2]} 4... Nbd7 {[%clk 0:03:02.1]} 5. Rg1 {[%clk 0:02:59.2]}
5... g6 {[%clk 0:03:00.2]} 6. g4 {[%clk 0:02:58.9]} 6... Bg7 {[%clk 0:03:00.7]}
7. h4 {[%clk 0:02:57.8]} 7... c6 {[%clk 0:02:58.6]} 8. g5 {[%clk 0:02:56.5]}
8... Nh5 {[%clk 0:02:58.3]} 9. Be3 {[%clk 0:02:56.6]} 9... O-O {[%clk
0:02:57.5]} 10. Bc4 {[%clk 0:02:55.1]} 10... b5 {[%clk 0:02:56.3]} 11. Bb3
{[%clk 0:02:54.4]} 11... a5 {[%clk 0:02:56.5]} 12. a4 {[%clk 0:02:53.4]} 12...
b4 {[%clk 0:02:56.6]} 13. Ne2 {[%clk 0:02:52.8]} 13... Ba6 {[%clk 0:02:56.1]}
14. Ng3 {[%clk 0:02:51.1]} 14... Nf4 {[%clk 0:02:56.2]} 15. Qd2 {[%clk
0:02:46.5]} 15... Qe7 {[%clk 0:02:38.8]} 16. Bxf4 {[%clk 0:02:31.3]} 16... exf4
{[%clk 0:02:39.7]} 17. Qxf4 {[%clk 0:02:31.7]} 17... c5 {[%clk 0:02:32.5]} 18.
Bd5 {[%clk 0:02:24.8]} 18... Rac8 {[%clk 0:02:25.9]} 19. O-O-O {[%clk
0:01:51.5]} 19... cxd4 {[%clk 0:02:26]} 20. Nxd4 {[%clk 0:01:49.8]} 20... Nc5
{[%clk 0:02:21]} 21. Kb1 {[%clk 0:01:37]} 21... Nxa4 {[%clk 0:02:18.6]} 22. Ngf5
{[%clk 0:01:25.5]} 22... gxf5 {[%clk 0:02:13.7]} 23. Nxf5 {[%clk 0:01:19.5]}
23... Qe5 {[%clk 0:02:10.8]} 24. Qxe5 {[%clk 0:01:15.2]} 24... Bxe5 {[%clk
0:02:11.7]} 25. h5 {[%clk 0:01:00.3]} 25... Nxb2 {[%clk 0:02:04.1]} 26. g6
{[%clk 0:00:30.3]} 26... Nxd1 {[%clk 0:02:01.6]} 27. gxf7+ {[%clk 0:00:23]}
27... Kh8 {[%clk 0:02:00.5]} 28. Ne7 {[%clk 0:00:18.7]} 28... Nc3+ {[%clk
0:01:58.6]} 29. Kc1 {[%clk 0:00:12.2]} 29... Ne2+ {[%clk 0:01:56.5]} 30. Kd2
{[%clk 0:00:12.1]} 30... Nxg1 {[%clk 0:01:57.4]} 31. Nxc8 {[%clk 0:00:11.1]}
31... Bxc8 {[%clk 0:01:54.8]} 0-1

[Event "Late-Titled-Tuesday-Blitz-February-13-2024"]
[Site "Chess.com"]
[Date "2024.02.13"]
[Round "3"]
[White "Doublekk14"]
[Black "Alina_Gumerovna"]
[Result "1-0"]
[WhiteElo "2332"]
[BlackElo "2060"]
[TimeControl "180+1"]
[EndTime "14:26:11 PST"]
[Termination "Doublekk14 won on time"]

1. c4 {[%clk 0:03:00.9]} 1... Nf6 {[%clk 0:02:59.1]} 2. Nc3 {[%clk 0:03:00.5]}
2... g6 {[%clk 0:02:59.4]} 3. e3 {[%clk 0:03:00.2]} 3... Bg7 {[%clk 0:02:59.6]}
4. Nf3 {[%clk 0:03:00.9]} 4... O-O {[%clk 0:03:00.1]} 5. d4 {[%clk 0:03:01.2]}
5... d6 {[%clk 0:03:00.3]} 6. Be2 {[%clk 0:03:01.6]} 6... Nc6 {[%clk 0:03:00]}
7. O-O {[%clk 0:03:00.5]} 7... e5 {[%clk 0:02:59.8]} 8. Qc2 {[%clk 0:02:58]}
8... Bf5 {[%clk 0:02:57.7]} 9. e4 {[%clk 0:02:57.1]} 9... Bd7 {[%clk 0:02:57.4]}
10. dxe5 {[%clk 0:02:56.5]} 10... dxe5 {[%clk 0:02:58.3]} 11. Rd1 {[%clk
0:02:52.7]} 11... Qe7 {[%clk 0:02:56.9]} 12. Bg5 {[%clk 0:02:49.7]} 12... Nb4
{[%clk 0:02:11.4]} 13. Qb3 {[%clk 0:02:40.2]} 13... Rfd8 {[%clk 0:01:26.3]} 14.
a3 {[%clk 0:02:32.4]} 14... Nc6 {[%clk 0:01:25.4]} 15. Nd5 {[%clk 0:02:32.3]}
15... Nxd5 {[%clk 0:00:52.5]} 16. Bxe7 {[%clk 0:02:29.4]} 16... Ndxe7 {[%clk
0:00:53.4]} 17. Qxb7 {[%clk 0:02:09]} 17... Rab8 {[%clk 0:00:50]} 18. Qxc7
{[%clk 0:02:06.6]} 18... Rbc8 {[%clk 0:00:43]} 19. Qxd7 {[%clk 0:01:56.6]} 19...
Rxd7 {[%clk 0:00:37.3]} 20. Rxd7 {[%clk 0:01:57.5]} 20... h6 {[%clk 0:00:19]}
21. b4 {[%clk 0:01:50.1]} 21... Bf8 {[%clk 0:00:02.1]} 22. b5 {[%clk 0:01:46.8]}
22... Na5 {[%clk 0:00:02.3]} 23. Rxa7 {[%clk 0:01:43.5]} 23... Nxc4 {[%clk
0:00:01.9]} 24. Rc1 {[%clk 0:01:39.1]} 1-0

[Event "Late-Titled-Tuesday-Blitz-February-13-2024"]
[Site "Chess.com"]
[Date "2024.02.13"]
[Round "3"]
[White "ACollins05"]
[Black "manitodeplomo"]
[Result "0-1"]
[WhiteElo "2448"]
[BlackElo "2642"]
[TimeControl "180+1"]
[EndTime "14:26:14 PST"]
[Termination "manitodeplomo won by checkmate"]

1. d4 {[%clk 0:03:00.9]} 1... g6 {[%clk 0:02:58.1]} 2. c4 {[%clk 0:02:58.6]}
2... Bg7 {[%clk 0:02:57.3]} 3. Nc3 {[%clk 0:02:58]} 3... Nf6 {[%clk 0:02:55.6]}
4. e4 {[%clk 0:02:52]} 4... O-O {[%clk 0:02:54.8]} 5. h3 {[%clk 0:02:52]} 5...
d6 {[%clk 0:02:52.5]} 6. Bg5 {[%clk 0:02:51.5]} 6... a6 {[%clk 0:02:50.7]} 7.
Nf3 {[%clk 0:02:51]} 7... c5 {[%clk 0:02:50.5]} 8. d5 {[%clk 0:02:50.7]} 8... b5
{[%clk 0:02:50]} 9. cxb5 {[%clk 0:02:42.4]} 9... axb5 {[%clk 0:02:50.9]} 10.
Bxb5 {[%clk 0:02:36.6]} 10... Nxe4 {[%clk 0:02:49.7]} 11. Nxe4 {[%clk
0:02:29.7]} 11... Qa5+ {[%clk 0:02:46.6]} 12. Nc3 {[%clk 0:02:10.2]} 12... Bxc3+
{[%clk 0:02:43.2]} 13. bxc3 {[%clk 0:02:11.1]} 13... Qxb5 {[%clk 0:02:43.4]} 14.
Qe2 {[%clk 0:02:09.6]} 14... Qxe2+ {[%clk 0:02:40.9]} 15. Kxe2 {[%clk
0:02:10.5]} 15... Ba6+ {[%clk 0:02:41.2]} 16. Kd2 {[%clk 0:02:10.2]} 16... f6
{[%clk 0:02:37.6]} 17. Bh6 {[%clk 0:02:06.8]} 17... Re8 {[%clk 0:02:36.8]} 18.
Rhb1 {[%clk 0:01:57.5]} 18... Bc4 {[%clk 0:02:32.4]} 19. a4 {[%clk 0:01:51.5]}
19... Bxd5 {[%clk 0:02:32]} 20. Ne1 {[%clk 0:01:41]} 20... Nc6 {[%clk
0:02:29.3]} 21. Be3 {[%clk 0:01:38.3]} 21... Ra6 {[%clk 0:02:24.7]} 22. Nd3
{[%clk 0:01:31.5]} 22... Rea8 {[%clk 0:02:23.1]} 23. Nb2 {[%clk 0:01:31.3]}
23... Bxg2 {[%clk 0:02:17.3]} 24. h4 {[%clk 0:01:29.9]} 24... Bd5 {[%clk
0:02:14.6]} 25. c4 {[%clk 0:01:29.3]} 25... Be6 {[%clk 0:02:14.2]} 26. Kc3
{[%clk 0:01:28.9]} 26... Kf7 {[%clk 0:02:12.2]} 27. Re1 {[%clk 0:01:13.6]} 27...
Rb6 {[%clk 0:02:09.2]} 28. Nd3 {[%clk 0:01:11.4]} 28... Rab8 {[%clk 0:02:00.4]}
29. Ra3 {[%clk 0:01:07.2]} 29... Na5 {[%clk 0:01:57.4]} 30. Nf4 {[%clk
0:00:45.8]} 30... Bxc4 {[%clk 0:01:49.4]} 31. h5 {[%clk 0:00:41.6]} 31... e5
{[%clk 0:01:48.7]} 32. hxg6+ {[%clk 0:00:37.1]} 32... hxg6 {[%clk 0:01:49.6]}
33. Nh3 {[%clk 0:00:32.1]} 33... Rb3+ {[%clk 0:01:42.4]} 34. Rxb3 {[%clk
0:00:30.9]} 34... Rxb3+ {[%clk 0:01:43.3]} 35. Kc2 {[%clk 0:00:29.1]} 35... Bd3+
{[%clk 0:01:40.6]} 36. Kd2 {[%clk 0:00:27.7]} 36... Nc4+ {[%clk 0:01:40]} 37.
Kc1 {[%clk 0:00:26.9]} 37... Rb1# {[%clk 0:01:38.5]} 0-1

[Event "Late-Titled-Tuesday-Blitz-February-13-2024"]
[Site "Chess.com"]
[Date "2024.02.13"]
[Round "3"]
[White "ChEsper99"]
[Black "Conejoviejo67"]
[Result "0-1"]
[WhiteElo "2205"]
[BlackElo "2438"]
[TimeControl "180+1"]
[EndTime "14:26:14 PST"]
[Termination "Conejoviejo67 won on time"]

1. d4 {[%clk 0:03:00.9]} 1... f5 {[%clk 0:02:57.1]} 2. g3 {[%clk 0:02:59.2]}
2... Nf6 {[%clk 0:02:57]} 3. Bg2 {[%clk 0:02:59.5]} 3... d5 {[%clk 0:02:56.9]}
4. c4 {[%clk 0:02:59.5]} 4... e6 {[%clk 0:02:57.1]} 5. Nf3 {[%clk 0:02:59.3]}
5... c6 {[%clk 0:02:57.4]} 6. O-O {[%clk 0:02:59.3]} 6... Bd6 {[%clk 0:02:57.9]}
7. b3 {[%clk 0:02:57.2]} 7... Qe7 {[%clk 0:02:56.3]} 8. a4 {[%clk 0:02:55.3]}
8... Nbd7 {[%clk 0:02:55.9]} 9. Ba3 {[%clk 0:02:52.7]} 9... Ne4 {[%clk 0:02:56]}
10. Bxd6 {[%clk 0:02:51.1]} 10... Qxd6 {[%clk 0:02:56.9]} 11. e3 {[%clk
0:02:47.4]} 11... O-O {[%clk 0:02:56.3]} 12. Nfd2 {[%clk 0:02:34.4]} 12... b6
{[%clk 0:02:53.3]} 13. f3 {[%clk 0:02:31]} 13... Nef6 {[%clk 0:02:51.1]} 14. Nc3
{[%clk 0:02:29.1]} 14... Ba6 {[%clk 0:02:50.4]} 15. Re1 {[%clk 0:02:28.4]} 15...
e5 {[%clk 0:02:39.5]} 16. Rc1 {[%clk 0:02:00]} 16... Rad8 {[%clk 0:02:18]} 17.
cxd5 {[%clk 0:01:59.5]} 17... Nxd5 {[%clk 0:02:15.4]} 18. Nxd5 {[%clk
0:01:58.8]} 18... cxd5 {[%clk 0:02:14.4]} 19. Nb1 {[%clk 0:01:26.8]} 19... e4
{[%clk 0:02:12.6]} 20. f4 {[%clk 0:01:18.8]} 20... Rc8 {[%clk 0:02:11.3]} 21.
Bf1 {[%clk 0:01:12.6]} 21... Bxf1 {[%clk 0:02:09.2]} 22. Rxf1 {[%clk 0:01:11]}
22... Qb4 {[%clk 0:02:09]} 23. Nd2 {[%clk 0:00:24.6]} 23... h6 {[%clk
0:02:09.9]} 24. Kg2 {[%clk 0:00:17.1]} 24... Nf6 {[%clk 0:02:08.7]} 25. h3
{[%clk 0:00:16.5]} 25... Rc3 {[%clk 0:02:06.3]} 26. Rxc3 {[%clk 0:00:13.1]}
26... Qxc3 {[%clk 0:02:07.2]} 27. Qc1 {[%clk 0:00:13.2]} 27... Qxe3 {[%clk
0:02:04.2]} 28. Re1 {[%clk 0:00:10.5]} 28... Qxd4 {[%clk 0:02:00.2]} 29. Nf1
{[%clk 0:00:08.3]} 29... Qc5 {[%clk 0:01:55.5]} 30. Rd1 {[%clk 0:00:02.1]} 30...
g6 {[%clk 0:01:53.2]} 31. Ne3 {[%clk 0:00:01]} 31... Rd8 {[%clk 0:01:51.6]} 0-1

[Event "Late-Titled-Tuesday-Blitz-February-13-2024"]
[Site "Chess.com"]
[Date "2024.02.13"]
[Round "3"]
[White "miraitrunks"]
[Black "Cristi_Coca"]
[Result "1-0"]
[WhiteElo "2207"]
[BlackElo "2377"]
[TimeControl "180+1"]
[EndTime "14:26:26 PST"]
[Termination "miraitrunks won by resignation"]

1. e4 {[%clk 0:02:59.9]} 1... c5 {[%clk 0:03:00]} 2. c3 {[%clk 0:02:59]} 2... d5
{[%clk 0:02:59.4]} 3. exd5 {[%clk 0:02:59.9]} 3... Qxd5 {[%clk 0:03:00.3]} 4. d4
{[%clk 0:02:44.8]} 4... Nf6 {[%clk 0:02:59.6]} 5. Nf3 {[%clk 0:02:44.6]} 5... e6
{[%clk 0:02:58.7]} 6. Na3 {[%clk 0:02:44.6]} 6... Nc6 {[%clk 0:02:45.3]} 7. Be3
{[%clk 0:02:43.6]} 7... cxd4 {[%clk 0:02:41.4]} 8. Nb5 {[%clk 0:02:43.5]} 8...
Qd8 {[%clk 0:02:39.9]} 9. Nbxd4 {[%clk 0:02:40.2]} 9... Bd7 {[%clk 0:02:37.7]}
10. Bd3 {[%clk 0:02:38.8]} 10... Be7 {[%clk 0:02:35.6]} 11. O-O {[%clk
0:02:38.1]} 11... Nd5 {[%clk 0:02:32.2]} 12. Bd2 {[%clk 0:02:36.5]} 12... Bf6
{[%clk 0:02:29.4]} 13. Qe2 {[%clk 0:02:31]} 13... O-O {[%clk 0:02:29.3]} 14. Qe4
{[%clk 0:02:24.8]} 14... g6 {[%clk 0:02:28.5]} 15. Bh6 {[%clk 0:02:18.2]} 15...
Re8 {[%clk 0:02:28.2]} 16. h4 {[%clk 0:02:14.4]} 16... Nxd4 {[%clk 0:01:56]} 17.
cxd4 {[%clk 0:02:13.2]} 17... Bc6 {[%clk 0:01:55.5]} 18. Qg4 {[%clk 0:02:09.7]}
18... Nb4 {[%clk 0:01:50.3]} 19. Be4 {[%clk 0:01:56.6]} 19... Bxe4 {[%clk
0:01:38]} 20. Qxe4 {[%clk 0:01:57.5]} 20... Qd5 {[%clk 0:01:35.3]} 21. Qg4
{[%clk 0:01:55.4]} 21... Rad8 {[%clk 0:01:27.8]} 22. Rfd1 {[%clk 0:01:54]} 22...
Nxa2 {[%clk 0:01:09.1]} 23. h5 {[%clk 0:01:48.3]} 23... a6 {[%clk 0:01:06.6]}
24. hxg6 {[%clk 0:01:47.1]} 24... hxg6 {[%clk 0:01:06.7]} 25. Ne5 {[%clk
0:01:44.9]} 25... Bxe5 {[%clk 0:00:44.3]} 26. dxe5 {[%clk 0:01:45.8]} 26... Qb3
{[%clk 0:00:43.6]} 27. Rxd8 {[%clk 0:01:40.8]} 27... Rxd8 {[%clk 0:00:43.3]} 28.
Qh4 {[%clk 0:01:33.5]} 28... Rd1+ {[%clk 0:00:42.6]} 29. Kh2 {[%clk 0:01:29.8]}
29... Qd5 {[%clk 0:00:24]} 30. Qf6 {[%clk 0:01:27.5]} 1-0

[Event "Late-Titled-Tuesday-Blitz-February-13-2024"]
[Site "Chess.com"]
[Date "2024.02.13"]
[Round "3"]
[White "AryanTari"]
[Black "ArtemDyachuk"]
[Result "1-0"]
[WhiteElo "2932"]
[BlackElo "2615"]
[TimeControl "180+1"]
[EndTime "14:26:34 PST"]
[Termination "AryanTari won on time"]

1. Nf3 {[%clk 0:03:00.9]} 1... d5 {[%clk 0:02:52.1]} 2. e3 {[%clk 0:03:00.7]}
2... Bg4 {[%clk 0:02:47.7]} 3. c4 {[%clk 0:02:58.7]} 3... e6 {[%clk 0:02:46.8]}
4. Qb3 {[%clk 0:02:52.6]} 4... Nd7 {[%clk 0:02:41.5]} 5. cxd5 {[%clk 0:02:47.1]}
5... exd5 {[%clk 0:02:35.5]} 6. Qxd5 {[%clk 0:02:42.3]} 6... Ngf6 {[%clk
0:02:34.9]} 7. Qxb7 {[%clk 0:02:41]} 7... Bd6 {[%clk 0:02:09.2]} 8. Nc3 {[%clk
0:02:38]} 8... O-O {[%clk 0:01:57.7]} 9. Qb3 {[%clk 0:02:34.5]} 9... Rb8 {[%clk
0:01:28.9]} 10. Qd1 {[%clk 0:02:34.2]} 10... Re8 {[%clk 0:01:22.4]} 11. Be2
{[%clk 0:02:33.6]} 11... Nf8 {[%clk 0:01:22.2]} 12. b3 {[%clk 0:02:15.1]} 12...
Ng6 {[%clk 0:01:21.3]} 13. Bb2 {[%clk 0:02:15.3]} 13... Nf4 {[%clk 0:00:33.5]}
14. exf4 {[%clk 0:02:12.4]} 14... Bxf3 {[%clk 0:00:33.8]} 15. gxf3 {[%clk
0:02:11.8]} 15... Nh5 {[%clk 0:00:34.4]} 16. Nd5 {[%clk 0:01:43.7]} 16... Bc5
{[%clk 0:00:21.9]} 17. Ne3 {[%clk 0:01:22.3]} 17... Nxf4 {[%clk 0:00:22]} 18.
Qc2 {[%clk 0:01:22]} 18... Qd6 {[%clk 0:00:10.6]} 19. Rg1 {[%clk 0:01:16.2]}
19... Bd4 {[%clk 0:00:09.6]} 20. Bc4 {[%clk 0:01:09.7]} 20... Rbd8 {[%clk
0:00:06.1]} 21. O-O-O {[%clk 0:01:08.9]} 21... a5 {[%clk 0:00:04.5]} 22. Nf5
{[%clk 0:01:09.1]} 22... Qe5 {[%clk 0:00:01.5]} 23. Rxg7+ {[%clk 0:01:07.6]} 1-0

[Event "Late-Titled-Tuesday-Blitz-February-13-2024"]
[Site "Chess.com"]
[Date "2024.02.13"]
[Round "3"]
[White "EvilMorty23"]
[Black "fmcabralis"]
[Result "1-0"]
[WhiteElo "2514"]
[BlackElo "2253"]
[TimeControl "180+1"]
[EndTime "14:26:34 PST"]
[Termination "EvilMorty23 won by resignation"]

1. e4 {[%clk 0:02:57.1]} 1... c5 {[%clk 0:03:00.1]} 2. Nf3 {[%clk 0:02:56.8]}
2... Nc6 {[%clk 0:03:00.6]} 3. c3 {[%clk 0:02:56.8]} 3... d5 {[%clk 0:02:59.1]}
4. exd5 {[%clk 0:02:57.7]} 4... Qxd5 {[%clk 0:02:59.4]} 5. d4 {[%clk 0:02:58.6]}
5... Nf6 {[%clk 0:02:55.5]} 6. Be2 {[%clk 0:02:55.7]} 6... e6 {[%clk 0:02:53.5]}
7. Na3 {[%clk 0:02:54.6]} 7... Be7 {[%clk 0:02:51.8]} 8. Nb5 {[%clk 0:02:53.8]}
8... Qd8 {[%clk 0:02:41.3]} 9. Bf4 {[%clk 0:02:49.9]} 9... Nd5 {[%clk 0:02:41]}
10. Bg3 {[%clk 0:02:49.6]} 10... a6 {[%clk 0:02:39.8]} 11. Na3 {[%clk
0:02:46.2]} 11... cxd4 {[%clk 0:02:40]} 12. Nxd4 {[%clk 0:02:43.7]} 12... Nxd4
{[%clk 0:02:34.8]} 13. Qxd4 {[%clk 0:02:42.8]} 13... O-O {[%clk 0:02:17.8]} 14.
Nc4 {[%clk 0:02:39.5]} 14... b5 {[%clk 0:02:11.4]} 15. Ne5 {[%clk 0:02:25.9]}
15... Bb7 {[%clk 0:01:57.3]} 16. O-O {[%clk 0:02:20.6]} 16... f6 {[%clk
0:01:54.2]} 17. Nf3 {[%clk 0:02:04.7]} 17... Rc8 {[%clk 0:01:54]} 18. Bd3 {[%clk
0:02:00.7]} 18... e5 {[%clk 0:01:44.5]} 19. Qg4 {[%clk 0:02:00.2]} 19... Rc7
{[%clk 0:01:15.3]} 20. Rad1 {[%clk 0:01:52.5]} 20... Bc8 {[%clk 0:01:06.5]} 21.
Qh5 {[%clk 0:01:48.4]} 21... f5 {[%clk 0:00:21.8]} 22. Bxe5 {[%clk 0:01:40.2]}
22... Rb7 {[%clk 0:00:16.1]} 23. c4 {[%clk 0:01:34.1]} 23... bxc4 {[%clk
0:00:04.4]} 24. Bxc4 {[%clk 0:01:34.2]} 24... Be6 {[%clk 0:00:04.8]} 25. Nd4
{[%clk 0:01:34.6]} 25... Bf7 {[%clk 0:00:04.7]} 26. Qxf5 {[%clk 0:01:31.6]}
26... Rd7 {[%clk 0:00:04.6]} 27. Nc6 {[%clk 0:01:31]} 27... Ne3 {[%clk
0:00:03.5]} 28. fxe3 {[%clk 0:01:25.7]} 28... Rxd1 {[%clk 0:00:02.3]} 29. Nxd8
{[%clk 0:01:25.2]} 29... Rxf1+ {[%clk 0:00:02.2]} 30. Qxf1 {[%clk 0:01:24]}
30... Bxc4 {[%clk 0:00:02.4]} 31. Qxc4+ {[%clk 0:01:24]} 31... Kh8 {[%clk
0:00:03.1]} 32. Nf7+ {[%clk 0:01:24.3]} 1-0

[Event "Late-Titled-Tuesday-Blitz-February-13-2024"]
[Site "Chess.com"]
[Date "2024.02.13"]
[Round "3"]
[White "tgpgoat"]
[Black "Sleepless_Knightmare"]
[Result "0-1"]
[WhiteElo "2540"]
[BlackElo "2299"]
[TimeControl "180+1"]
[EndTime "14:26:36 PST"]
[Termination "Sleepless_Knightmare won by resignation"]

1. Nf3 {[%clk 0:02:32.6]} 1... d5 {[%clk 0:02:58.2]} 2. g3 {[%clk 0:02:32.5]}
2... Nf6 {[%clk 0:02:57.7]} 3. Bg2 {[%clk 0:02:33.1]} 3... Bg4 {[%clk
0:02:58.3]} 4. O-O {[%clk 0:02:34]} 4... Nbd7 {[%clk 0:02:58.1]} 5. Ne5 {[%clk
0:02:34.6]} 5... Nxe5 {[%clk 0:02:56.8]} 6. d4 {[%clk 0:02:26]} 6... Nc6 {[%clk
0:02:55.5]} 7. c4 {[%clk 0:02:22.9]} 7... dxc4 {[%clk 0:02:52.9]} 8. Qa4 {[%clk
0:02:17.1]} 8... Bxe2 {[%clk 0:02:50.3]} 9. Bxc6+ {[%clk 0:02:08.8]} 9... bxc6
{[%clk 0:02:51.2]} 10. Qxc6+ {[%clk 0:02:09.2]} 10... Nd7 {[%clk 0:02:50.3]} 11.
Re1 {[%clk 0:02:09]} 11... Bd3 {[%clk 0:02:49.7]} 12. Nc3 {[%clk 0:02:08.2]}
12... Rb8 {[%clk 0:02:48.3]} 13. Nb5 {[%clk 0:02:03.2]} 13... Rxb5 {[%clk
0:02:45.7]} 14. Qxb5 {[%clk 0:02:03]} 14... Qb8 {[%clk 0:02:43.3]} 15. Qc6
{[%clk 0:01:57.6]} 15... Qb6 {[%clk 0:02:38]} 16. Qa8+ {[%clk 0:01:57.5]} 16...
Nb8 {[%clk 0:02:34.2]} 17. d5 {[%clk 0:01:46]} 17... e6 {[%clk 0:02:33]} 18. Be3
{[%clk 0:01:43.1]} 18... Qxb2 {[%clk 0:02:27.5]} 19. Bxa7 {[%clk 0:01:20.9]}
19... Bd6 {[%clk 0:02:20.7]} 20. dxe6 {[%clk 0:00:59.5]} 20... O-O {[%clk
0:02:02.1]} 21. exf7+ {[%clk 0:00:59.4]} 21... Kh8 {[%clk 0:01:58]} 22. Bxb8
{[%clk 0:00:52.6]} 22... c3 {[%clk 0:01:44]} 23. Bxc7 {[%clk 0:00:12.5]} 23...
Rxa8 {[%clk 0:01:39.6]} 24. Re8+ {[%clk 0:00:12.6]} 24... Bf8 {[%clk 0:01:38.7]}
25. Rae1 {[%clk 0:00:10.7]} 25... Qa3 {[%clk 0:01:35.9]} 26. Rxa8 {[%clk
0:00:08.8]} 26... Qxa8 {[%clk 0:01:35.6]} 27. Re8 {[%clk 0:00:09.6]} 27... Qa3
{[%clk 0:01:35.6]} 28. Bd8 {[%clk 0:00:04.3]} 28... c2 {[%clk 0:01:34.9]} 29.
Bg5 {[%clk 0:00:03.7]} 29... c1=Q+ {[%clk 0:01:32.1]} 30. Bxc1 {[%clk
0:00:02.5]} 30... Qxc1+ {[%clk 0:01:32.4]} 31. Kg2 {[%clk 0:00:03.4]} 31... Qc6+
{[%clk 0:01:31.5]} 32. Kh3 {[%clk 0:00:02.9]} 32... Qd7+ {[%clk 0:01:30.5]} 33.
Kg2 {[%clk 0:00:03]} 33... Qxf7 {[%clk 0:01:30.9]} 0-1

[Event "Late-Titled-Tuesday-Blitz-February-13-2024"]
[Site "Chess.com"]
[Date "2024.02.13"]
[Round "3"]
[White "TheAlienParty"]
[Black "babero_gordo"]
[Result "1-0"]
[WhiteElo "2399"]
[BlackElo "2134"]
[TimeControl "180+1"]
[EndTime "14:26:40 PST"]
[Termination "TheAlienParty won by resignation"]

1. c4 {[%clk 0:02:58.9]} 1... e5 {[%clk 0:02:59.2]} 2. Nc3 {[%clk 0:02:58.3]}
2... Nc6 {[%clk 0:02:59.7]} 3. Nf3 {[%clk 0:02:57.8]} 3... f6 {[%clk 0:03:00]}
4. d4 {[%clk 0:02:48.5]} 4... exd4 {[%clk 0:02:50.1]} 5. Nxd4 {[%clk 0:02:47.9]}
5... Bc5 {[%clk 0:02:45.4]} 6. Nb3 {[%clk 0:02:46.2]} 6... Bb4 {[%clk
0:02:41.6]} 7. Qc2 {[%clk 0:02:35.7]} 7... Qe7 {[%clk 0:02:29.8]} 8. a3 {[%clk
0:02:34.6]} 8... Bxc3+ {[%clk 0:02:28.9]} 9. Qxc3 {[%clk 0:02:34.3]} 9... d6
{[%clk 0:02:27.3]} 10. e3 {[%clk 0:02:33.3]} 10... Be6 {[%clk 0:02:25.1]} 11.
Be2 {[%clk 0:02:32.7]} 11... Bf7 {[%clk 0:02:19.8]} 12. O-O {[%clk 0:02:30.9]}
12... Nh6 {[%clk 0:02:15.8]} 13. Nd4 {[%clk 0:02:29.1]} 13... Nxd4 {[%clk
0:02:09.2]} 14. exd4 {[%clk 0:02:28.4]} 14... O-O {[%clk 0:02:06.3]} 15. Bxh6
{[%clk 0:02:25.3]} 15... Qxe2 {[%clk 0:01:59.9]} 16. Qg3 {[%clk 0:02:09.2]}
16... Bg6 {[%clk 0:01:58.2]} 17. Be3 {[%clk 0:02:00.1]} 17... Qxc4 {[%clk
0:01:55.8]} 18. Rac1 {[%clk 0:01:59.1]} 18... Qb5 {[%clk 0:01:35.2]} 19. Rxc7
{[%clk 0:01:57.5]} 19... Rac8 {[%clk 0:01:32.8]} 20. Qxd6 {[%clk 0:01:53]} 20...
Rxc7 {[%clk 0:01:20.7]} 21. Qxc7 {[%clk 0:01:51.9]} 21... Qxb2 {[%clk
0:01:20.4]} 22. d5 {[%clk 0:01:50.7]} 22... Qe5 {[%clk 0:01:07.5]} 23. d6 {[%clk
0:01:49]} 23... Rf7 {[%clk 0:00:54.3]} 24. Qc8+ {[%clk 0:01:40]} 24... Rf8
{[%clk 0:00:53.8]} 25. d7 {[%clk 0:01:39.8]} 25... Qe7 {[%clk 0:00:50.2]} 26.
Rd1 {[%clk 0:01:35.6]} 26... Rd8 {[%clk 0:00:47.7]} 27. Bc5 {[%clk 0:01:28.8]}
27... Qe2 {[%clk 0:00:10.5]} 28. Qxd8+ {[%clk 0:01:24.4]} 28... Kf7 {[%clk
0:00:10.8]} 29. Qe7+ {[%clk 0:01:16.3]} 29... Qxe7 {[%clk 0:00:05.8]} 30. Bxe7
{[%clk 0:01:15.2]} 30... Kxe7 {[%clk 0:00:06.7]} 1-0